bitfinex-derivatives/quotes_ETHF0:USTF0_20250824
["timestamp","ask_amount","ask_price","bid_price","bid_amount"]
[1756061724140,0.57588,4936.3,4936.2,1.4088]
[1756061724441,0.90318,4936.3,4936.2,1.4088]
[1756061724736,0.90318,4936.3,4936.2,1.6621075]
[1756061725535,0.57588,4936.3,4936.2,1.6621075]
[1756061726929,0.90318,4936.3,4936.2,1.6621075]
[1756061727130,1.12678,4936.3,4936.2,1.6621075]
[1756061727533,1.31158,4936.3,4936.2,1.6621075]
[1756061727730,1.31158,4936.3,4934.2,3.53523699]
[1756061727731,0.8335,4935.0,4934.9,1.1261]
[1756061727933,0.5648,4934.7,4934.6,0.878]
[1756061728238,1.81301,4934.7,4934.6,1.1261]
[1756061729737,0.57631,4934.7,4934.6,1.4]
[1756061729938,1.00851,4934.7,4934.6,1.4]
[1756061730136,1.81301,4934.7,4934.6,1.4]
[1756061730839,1.81301,4934.7,4934.6,1.1519]
[1756061731436,1.81301,4934.7,4934.6,1.4]
[1756061731739,1.81301,4934.7,4934.6,0.5481]
[1756061731936,1.81304,4934.3,4934.2,1.1862]
[1756061732137,0.40534,4935.5,4935.4,0.578]
[1756061732434,0.40534,4935.5,4935.4,1.4]
[1756061733244,1.22074,4935.5,4935.4,1.4]
[1756061733538,1.81294,4935.5,4935.4,1.4]
[1756061733744,1.81298,4935.0,4934.9,1.4]
[1756061733944,0.40542,4934.6,4934.5,1.4]
[1756061734348,0.57632,4934.6,4934.5,1.4]
[1756061735744,0.40542,4934.6,4934.5,1.4]
[1756061736244,1.81302,4934.6,4934.5,0.822]
[1756061736451,0.57635,4934.2,4934.1,1.40000781]
[1756061736648,0.2506,4935.7,4935.2,0.5481]
[1756061736843,0.40536,4935.3,4935.2,0.5481]
[1756061737349,0.40536,4935.3,4935.2,1.4]
[1756061738150,1.01325,4936.1,4935.2,1.4]
[1756061738151,1.54418,4936.2,4936.1,0.5481]
[1756061738359,1.81288,4936.2,4936.1,1.4]
[1756061742157,0.40535,4935.4,4935.3,0.5481]
[1756061742457,1.01317,4936.5,4934.3,1.79193633]
[1756061742458,0.97021,4934.7,4934.6,0.5481]
[1756061742661,1.81301,4934.7,4934.6,1.58558428]
[1756061742861,1.81301,4934.7,4934.6,1.4]
[1756061743062,0.40544,4934.3,4934.2,0.6038]
[1756061743361,1.81304,4934.3,4934.2,1.4]
[1756061744261,0.97024,4934.3,4934.2,1.4]
[1756061744656,1.29374,4934.3,4934.2,1.4]
[1756061744861,0.97024,4934.3,4934.2,1.4]
[1756061745261,1.54434,4934.3,4934.2,1.4]
[1756061745559,1.81304,4934.3,4934.2,1.4]
[1756061746162,1.81304,4934.3,4934.1,7.81e-06]
[1756061746163,0.0202,4934.2,4934.1,7.81e-06]
[1756061746363,4.0202,4934.2,4934.1,7.81e-06]
[1756061747666,4.49410178,4934.2,4934.1,7.81e-06]
[1756061747866,0.49410178,4934.2,4934.1,7.81e-06]
[1756061748267,0.0202,4934.2,4934.1,7.81e-06]
[1756061748667,19.68244,4934.3,4934.1,7.81e-06]
[1756061749167,24.07311982,4934.2,4934.1,7.81e-06]
[1756061749464,23.2962,4934.2,4934.1,7.81e-06]
[1756061749669,23.76959328,4934.2,4934.1,7.81e-06]
[1756061750164,0.1709,4931.9,4931.8,0.77]
[1756061750363,0.1709,4931.9,4931.8,0.3343]
[1756061750364,1.56264,4931.9,4931.8,0.3343]
[1756061750559,1.56264,4931.9,4931.8,1.4]
[1756061750764,1.81324,4931.9,4931.8,1.4]
[1756061750967,0.40563,4932.0,4931.8,5.4]
[1756061751165,0.40563,4932.0,4931.9,1.4]
[1756061751365,0.97043,4932.0,4931.9,1.4]
[1756061751561,1.81323,4932.0,4931.9,0.822]
[1756061751770,1.81323,4932.0,4931.9,1.1519]
[1756061751958,1.81323,4932.0,4931.9,1.4]
[1756061752159,0.4057,4931.1,4931.0,0.2739]
[1756061752366,0.5766,4931.1,4931.0,1.4]
[1756061752564,0.5766,4931.1,4930.0,2.52162699]
[1756061752565,0.4503,4930.8,4929.9,1.79193633]
[1756061752865,0.40572,4930.9,4930.8,0.8563]
[1756061753063,0.97052,4930.9,4930.8,1.4]
[1756061753264,1.81332,4930.9,4930.8,1.4]
[1756061753459,1.226,4930.9,4930.3,0.6038]
[1756061753664,0.8154,4930.4,4930.3,1.4]
[1756061753865,1.22116,4930.4,4930.3,1.4]
[1756061754064,1.81336,4930.4,4930.3,1.4]
[1756061754263,1.22116,4930.4,4930.3,1.4]
[1756061755171,0.40576,4930.4,4930.3,1.4]
[1756061755366,0.57666,4930.4,4930.3,1.4]
[1756061755668,0.57661,4931.0,4930.9,0.7962]
[1756061755868,0.1709,4931.0,4930.9,1.4]
[1756061756169,0.40571,4931.0,4930.9,1.4]
[1756061756868,1.21473085,4931.0,4930.9,1.4]
[1756061757068,1.21473085,4931.0,4930.2,0.40577]
[1756061757069,0.5741,4931.6,4931.2,0.5481]
[1756061757265,0.57659,4931.3,4931.2,0.5481]
[1756061757568,1.81329,4931.3,4931.2,0.5481]
[1756061757765,0.40569,4931.3,4931.2,1.3893]
[1756061757963,0.81079,4931.3,4931.2,1.3893]
[1756061758167,0.58003,4930.9,4930.8,0.5682]
[1756061758368,0.40571,4931.1,4930.8,1.4094]
[1756061758562,0.8526,4931.3,4930.8,1.4094]
[1756061758763,0.83759,4931.3,4931.2,1.4094]
[1756061759269,0.83759,4931.3,4931.2,0.5682]
[1756061759270,0.837,4931.3,4931.2,0.5682]
[1756061759470,1.83769,4931.3,4931.2,1.4094]
[1756061759658,0.1743,4931.3,4931.2,1.4094]
[1756061759865,0.40568,4931.5,4931.4,0.5682]
[1756061760064,0.595,4933.4,4932.7,0.40557]
[1756061760262,2.02701,4934.9,4933.0,0.2571]
[1756061760465,0.66314,4933.2,4933.1,0.5797]
[1756061761472,0.2541,4933.6,4933.1,0.5797]
[1756061761670,1.01358,4934.5,4933.3,0.2571]
[1756061761671,0.2576,4933.4,4933.3,0.2571]
[1756061761863,0.8526,4933.4,4933.3,0.5797]
[1756061762065,0.3409,4933.4,4932.7,0.3226]
[1756061762270,0.40558,4932.7,4932.6,0.3226]
[1756061762473,0.40558,4932.7,4932.6,0.5797]
[1756061762678,0.3409,4933.3,4932.6,0.5797]
[1756061762870,0.2576,4932.9,4932.7,0.5797]
[1756061763067,0.2541,4932.9,4932.6,0.40557]
[1756061763264,0.2576,4933.0,4931.7,1.01413]
[1756061763472,0.40559,4932.6,4932.1,0.40562]
[1756061763663,0.40559,4932.6,4931.5,0.16590622]
[1756061763664,0.2576,4932.5,4932.2,0.66641]
[1756061763867,0.66319,4932.5,4932.4,0.2571]
[1756061764075,0.66319,4932.5,4932.4,0.8405]
[1756061764264,0.595,4932.9,4932.5,0.40559]
[1756061764469,0.2576,4932.8,4932.6,0.2608]
[1756061764670,0.2576,4932.8,4932.7,0.5797]
[1756061765674,0.40556,4932.9,4932.7,0.8405]
[1756061765876,0.98496,4932.9,4932.8,1.1479]
[1756061766083,1.57996,4932.9,4932.8,1.1479]
[1756061766378,1.01373,4933.8,4932.8,1.1479]
[1756061766379,0.40554,4933.1,4932.8,1.4087]
[1756061766583,0.66314,4933.1,4933.0,0.5682]
[1756061766872,0.83744,4933.1,4933.0,1.1479]
[1756061767081,1.83754,4933.1,4933.0,0.4021]
[1756061767466,1.83754,4933.1,4933.0,0.226]
[1756061767671,1.83754,4933.1,4932.3,0.2571]
[1756061767672,0.4056,4932.4,4932.3,0.2571]
[1756061767871,1.8376,4932.4,4932.3,0.6592]
[1756061768275,1.8376,4932.4,4932.3,0.4021]
[1756061768774,1.8376,4932.4,4932.3,0.226]
[1756061768975,0.40566,4931.7,4931.6,0.226]
[1756061769179,1.83766,4931.7,4931.6,1.1479]
[1756061769368,1.83766,4931.7,4931.6,0.7247]
[1756061769569,0.8677,4931.3,4931.2,0.5993]
[1756061769775,1.432,4931.3,4931.2,0.9219]
[1756061769982,0.1743,4930.9,4930.8,0.8908]
[1756061770183,1.2086,4931.3,4931.2,0.5682]
[1756061770484,0.2541,4931.9,4931.5,1.4087]
[1756061770680,0.66324,4931.9,4931.8,0.3422]
[1756061770877,0.66321,4932.3,4932.2,1.4087]
[1756061771275,0.2576,4932.3,4932.2,1.4087]
[1756061771576,0.66318,4932.6,4932.5,0.9818]
[1756061771775,0.66318,4932.6,4932.5,1.1479]
[1756061771972,0.40554,4933.1,4932.9,0.5179]
[1756061772179,0.83742,4933.3,4933.2,1.1479]
[1756061772381,1.49662,4933.3,4933.2,1.1479]
[1756061772583,1.83752,4933.3,4933.2,0.7247]
[1756061772879,1.83752,4933.3,4933.2,0.4021]
[1756061773076,0.2576,4934.2,4933.2,0.2608]
[1756061773283,0.2576,4933.9,4933.6,0.5179]
[1756061773481,0.2576,4933.8,4933.2,0.40552]
[1756061773680,0.2576,4933.8,4933.4,0.40551]
[1756061773889,0.2576,4933.1,4932.3,0.2571]
[1756061774085,0.2576,4933.0,4932.8,0.5797]
[1756061774278,0.595,4933.0,4932.9,0.2571]
[1756061774583,1.00055,4933.0,4932.5,0.66269]
[1756061774782,0.595,4932.9,4932.5,0.40559]
[1756061774974,0.2576,4932.8,4932.7,0.5797]
[1756061775178,0.5117,4932.8,4932.7,0.5797]
[1756061775379,0.2576,4932.8,4932.7,0.5797]
[1756061775580,0.8526,4932.8,4932.7,0.5797]
[1756061776286,0.595,4932.6,4932.3,0.5797]
[1756061776580,0.2576,4933.2,4932.3,0.5797]
[1756061776786,0.595,4932.7,4932.3,0.4056]
[1756061776986,0.5117,4932.6,4932.5,0.5797]
[1756061777687,0.8526,4932.6,4932.5,0.3226]
[1756061777884,0.8526,4932.6,4932.5,0.5797]
[1756061778082,0.2576,4932.6,4932.5,0.8405]
[1756061778483,0.2541,4933.1,4932.5,0.8405]
[1756061778687,0.40553,4933.3,4931.7,1.01412]
[1756061778688,0.40553,4933.3,4932.9,1.24605]
[1756061778881,0.2576,4933.2,4933.0,0.5797]
[1756061779081,0.2576,4933.1,4933.0,0.5797]
[1756061779290,0.40556,4932.8,4932.7,0.3226]
[1756061779486,1.25816,4932.8,4932.7,0.5797]
[1756061779685,0.8526,4932.4,4932.3,0.5797]
[1756061780683,0.2576,4932.4,4932.3,0.5797]
[1756061780886,0.2576,4932.4,4932.3,1.4087]
[1756061781792,0.3409,4932.1,4930.6,0.5797]
[1756061782087,0.0202,4932.3,4930.4,2.52162699]
[1756061782088,1.25833,4930.8,4930.7,0.16971385]
[1756061782284,1.01421,4931.4,4930.4,0.5797]
[1756061782285,0.40575,4930.5,4930.4,0.5797]
[1756061782480,1.25835,4930.5,4930.4,0.5797]
[1756061784185,0.2541,4931.0,4930.4,0.5797]
[1756061784392,1.01416,4931.7,4930.1,0.5797]
[1756061784592,0.2576,4930.4,4930.2,0.5797]
[1756061784791,1.00076,4930.5,4930.0,0.40579]
[1756061784995,1.00076,4930.5,4930.4,0.5797]
[1756061785389,1.25836,4930.5,4930.4,0.5797]
[1756061785585,0.66336,4930.5,4930.4,0.5797]
[1756061785793,0.40574,4930.7,4930.6,0.5797]
[1756061785991,0.40573,4930.9,4930.6,0.2608]
[1756061786196,0.2576,4930.9,4930.8,0.5797]
[1756061786395,0.40571,4931.1,4930.7,0.40573]
[1756061786595,0.2576,4931.1,4930.9,0.2608]
[1756061786794,0.2576,4931.1,4931.0,0.5797]
[1756061788397,0.4257,4931.1,4931.0,1.1479]
[1756061789292,0.5925,4931.1,4931.0,1.1479]
[1756061789599,0.809,4931.1,4931.0,1.1479]
[1756061789993,1.4034,4931.1,4931.0,1.1479]
[1756061790399,1.4067,4930.8,4930.7,0.3235]
[1756061790597,1.4067,4930.8,4930.7,1.1348]
[1756061790793,0.8123,4930.8,4930.7,1.1348]
[1756061790991,0.5958,4930.8,4930.7,1.1348]
[1756061793802,0.2609,4931.1,4931.0,1.0539]
[1756061794098,0.429,4931.1,4931.0,1.383]
[1756061794303,0.8123,4931.1,4931.0,1.1348]
[1756061794504,1.4067,4931.1,4931.0,1.1348]
[1756061796404,1.4067,4931.1,4930.9,0.40571]
[1756061796405,1.81249,4930.1,4930.0,0.3935]
[1756061796708,0.9572,4929.9,4929.8,0.2267]
[1756061796896,0.0202,4930.7,4929.8,0.2267]
[1756061796897,0.5739,4930.0,4929.9,0.7125]
[1756061797100,0.7407,4930.0,4929.9,1.1348]
[1756061797300,1.8125,4930.0,4929.9,1.1348]
[1756061798706,0.429,4929.0,4928.9,1.1348]
[1756061798901,0.2671,4929.5,4929.4,1.1348]
[1756061798902,0.6961,4929.5,4929.4,1.1348]
[1756061799102,1.4067,4929.5,4929.4,0.579]
[1756061799410,1.4067,4929.1,4929.0,1.1348]
[1756061800598,1.01449,4930.1,4929.0,1.1348]
[1756061800599,0.5944,4929.6,4929.1,0.579]
[1756061800798,1.4067,4929.6,4929.5,0.5558]
[1756061801016,1.4067,4929.6,4929.5,1.1348]
[1756061801307,1.55166,4929.2,4929.1,1.1348]
[1756061801506,0.3349,4929.2,4929.1,1.1348]
[1756061801808,0.7612,4930.2,4930.1,1.1348]
[1756061802006,1.1458,4930.2,4930.1,0.3935]
[1756061802403,1.4067,4930.2,4930.1,0.3935]
[1756061802606,0.3273,4929.7,4929.3,0.579]
[1756061802908,1.4067,4928.9,4928.8,1.54069]
[1756061803508,1.4067,4928.9,4928.8,1.1348]
[1756061806118,0.8123,4928.9,4928.8,1.1348]
[1756061806325,1.00168,4929.0,4928.9,1.1348]
[1756061806521,1.81258,4929.0,4928.9,1.1348]
[1756061806825,1.4067,4929.0,4928.9,0.3935]
[1756061807020,0.5958,4928.5,4928.4,1.54072]
[1756061807414,0.8123,4928.5,4928.4,1.1348]
[1756061807727,0.2609,4928.5,4928.4,1.383]
[1756061808024,0.2671,4929.0,4928.4,0.8272]
[1756061808220,0.40586,4929.2,4929.0,0.579]
[1756061808425,0.95726,4929.2,4929.1,1.1348]
[1756061808626,1.81256,4929.2,4929.1,1.1348]
[1756061808923,1.1396,4929.2,4929.1,0.5558]
[1756061809123,1.1396,4929.2,4928.6,0.2482]
[1756061809124,0.5438,4928.9,4928.8,1.1348]
[1756061809321,0.8787,4929.5,4929.4,1.1348]
[1756061809826,1.81251,4929.9,4929.8,1.1348]
[1756061810118,1.81251,4929.9,4928.3,1.01483]
[1756061810119,0.8123,4928.4,4928.3,1.79193633]
[1756061810314,0.429,4928.4,4928.3,2.92673633]
[1756061810518,1.64452,4928.5,4928.4,1.1348]
[1756061810718,1.81262,4928.5,4928.4,0.3935]
[1756061811625,1.4067,4927.2,4927.1,1.79193633]
[1756061811825,0.95745,4926.9,4926.7,1.79193633]
[1756061812025,1.81275,4926.9,4926.8,0.17035433]
[1756061812225,1.26136,4926.7,4926.6,1.79193633]
[1756061812426,0.5882,4926.4,4926.1,1.79193633]
[1756061812620,0.528,4926.3,4926.2,0.42579982]
[1756061812823,0.8553,4926.3,4926.2,0.42579982]
[1756061813234,0.2609,4926.3,4926.2,0.17029982]
[1756061813425,0.2609,4926.6,4926.2,0.41849982]
[1756061813732,0.2609,4926.6,4926.5,0.2555]
[1756061813931,0.2609,4926.6,4926.5,0.5037]
[1756061814125,0.2609,4926.6,4926.5,0.8272]
[1756061814328,0.2609,4927.0,4926.7,0.8272]
[1756061814526,0.67313,4927.1,4926.9,0.579]
[1756061814729,0.2609,4927.0,4926.7,0.2482]
[1756061814933,0.2609,4926.9,4926.7,0.2482]
[1756061815227,0.2609,4925.4,4925.0,1.81351413]
[1756061815427,0.40616,4925.6,4924.7,0.2482]
[1756061815624,1.0151,4927.1,4925.1,0.2555]
[1756061815820,0.16440028,4927.1,4925.5,0.2555]
[1756061816026,0.40606,4926.9,4925.9,0.2555]
[1756061816326,0.40608,4926.5,4926.2,0.2482]
[1756061816522,0.40608,4926.5,4926.4,0.2482]
[1756061816724,20.29744,4928.2,4925.5,20.061]
[1756061816725,0.0202,4928.5,4926.5,0.2555]
[1756061817027,0.40606,4926.8,4926.7,0.5037]
[1756061817327,1.01502,4927.5,4926.1,0.2482]
[1756061817528,0.18129305,4928.5,4926.1,0.2482]
[1756061817727,0.0141,4927.2,4926.4,0.528]
[1756061817933,0.42013,4927.2,4926.5,0.8542]
[1756061818132,0.0135,4927.8,4926.5,0.8542]
[1756061818133,0.40602,4927.3,4926.8,0.3262]
[1756061818333,0.0141,4927.6,4926.9,0.2646]
[1756061818535,0.40602,4927.3,4927.0,0.2634]
[1756061818727,0.42012,4927.3,4927.1,0.2634]
[1756061819034,0.40602,4927.3,4927.2,0.2646]
[1756061819422,0.40602,4927.3,4926.6,0.2634]
[1756061819423,1.01497,4927.7,4926.6,0.528]
[1756061819727,0.0141,4926.7,4926.6,0.528]
[1756061820228,0.0141,4926.7,4922.6,2.03201]
[1756061820229,0.40611,4926.1,4926.0,0.8542]
[1756061820822,0.40609,4926.4,4926.0,0.8542]
[1756061821031,0.40611,4926.1,4926.0,0.2646]
[1756061821231,0.42021,4926.1,4926.0,0.528]
[1756061821431,0.42021,4926.1,4926.0,0.2646]
[1756061821734,0.42021,4926.1,4926.0,0.528]
[1756061821928,0.40611,4926.1,4926.0,0.528]
[1756061822233,0.40616,4925.6,4925.5,0.2634]
[1756061822428,0.40616,4925.6,4925.5,0.8542]
[1756061822830,0.0141,4926.9,4925.5,4.0]
[1756061823036,0.40611,4926.2,4925.6,0.40615]
[1756061823332,0.40614,4925.8,4925.1,0.16270559]
[1756061823632,0.0141,4927.1,4926.0,0.5896]
[1756061823830,0.0141,4927.1,4926.2,0.5896]
[1756061824024,0.0141,4927.8,4925.0,0.0203]
[1756061824232,0.0141,4927.8,4924.9,1.01554]
[1756061824233,1.01497,4927.7,4926.7,0.528]
[1756061824431,0.0141,4927.8,4927.1,0.2634]
[1756061824627,0.40602,4927.2,4927.1,0.2634]
[1756061824827,0.42012,4927.2,4927.1,0.2634]
[1756061825030,0.42012,4927.2,4927.1,0.528]
[1756061825937,0.42012,4927.2,4927.1,0.2646]
[1756061827027,0.42012,4927.2,4926.8,0.3262]
[1756061827028,6.04425,4927.2,4924.1,0.09341714]
[1756061827233,1.01513,4926.9,4926.1,0.528]
[1756061827431,0.40611,4926.2,4926.1,0.8542]
[1756061827835,0.40611,4926.2,4926.1,0.528]
[1756061828337,0.40611,4926.2,4926.1,0.8542]
[1756061828525,0.40611,4926.2,4926.1,0.528]
[1756061828730,0.40623,4924.7,4924.6,0.3262]
[1756061829127,0.40623,4924.7,4924.6,0.528]
[1756061829332,0.42033,4924.7,4924.6,0.2646]
[1756061829527,0.42033,4924.7,4924.0,0.10325714]
[1756061829528,0.40627,4924.2,4924.0,0.10325714]
[1756061829732,0.4802,4924.1,4922.8,0.16272959]
[1756061829931,0.40633,4923.5,4922.9,0.17014091]
[1756061830241,0.4802,4924.1,4922.8,0.56796922]
[1756061830242,0.40632,4923.6,4922.8,0.56796922]
[1756061830439,0.4802,4924.1,4922.8,0.16158922]
[1756061830639,0.4802,4924.6,4922.9,0.40638]
[1756061830836,1.01555,4924.9,4922.6,0.4064]
[1756061831141,0.2229,4923.3,4922.4,0.16129599]
[1756061831331,0.4802,4923.1,4922.4,0.16129599]
[1756061831732,0.40637,4923.0,4922.5,0.2646]
[1756061832038,0.2229,4922.8,4922.7,0.2646]
[1756061832240,0.2573,4922.5,4921.4,0.2646]
[1756061832433,0.4802,4922.3,4921.6,0.2646]
[1756061832630,0.2229,4922.9,4922.0,0.5896]
[1756061832938,0.62928,4922.9,4922.2,0.2634]
[1756061833131,0.2229,4922.9,4922.2,0.2634]
[1756061833331,0.2573,4922.8,4922.1,0.2646]
[1756061833536,0.2573,4922.8,4922.2,0.2634]
[1756061833840,0.4802,4923.5,4921.8,20.133]
[1756061834135,0.4802,4924.2,4923.3,0.40634]
[1756061834341,0.4802,4924.2,4923.6,0.40632]
[1756061834535,0.4802,4924.2,4923.8,0.2634]
[1756061834741,0.40623,4924.8,4923.7,0.40631]
[1756061834941,0.2229,4924.7,4924.0,0.528]
[1756061835129,0.4802,4925.5,4923.7,0.8542]
[1756061835435,0.4802,4925.5,4924.7,0.8542]
[1756061835643,0.4802,4925.5,4924.8,0.67082]
[1756061835836,0.88636,4925.5,4924.8,0.2646]
[1756061836240,0.40618,4925.3,4924.8,0.2646]
[1756061836440,0.2573,4925.5,4924.7,0.8542]
[1756061836643,0.2229,4925.0,4924.7,0.8542]
[1756061836834,0.2229,4925.0,4924.8,0.2646]
[1756061837146,0.2229,4925.0,4924.9,0.2646]
[1756061837437,0.66348,4925.4,4924.8,0.2634]
[1756061837438,0.2573,4925.4,4924.8,0.2646]
[1756061837637,0.2229,4925.0,4924.8,0.2646]
[1756061837834,0.2229,4925.0,4923.5,20.129]
[1756061837835,0.2573,4925.5,4924.9,0.8542]
[1756061838035,0.40618,4925.3,4924.9,0.8542]
[1756061838342,0.2229,4925.3,4925.1,0.2646]
[1756061838636,0.5219,4926.5,4925.1,0.2634]
[1756061838936,0.66349,4925.2,4925.1,0.2634]
[1756061839240,0.88639,4925.2,4925.1,0.29127683]
[1756061839440,0.88639,4925.2,4925.1,0.02787683]
[1756061839633,5.15099,4925.2,4925.1,0.02787683]
[1756061839833,0.40625,4924.6,4924.1,0.2634]
[1756061840043,0.66351,4925.0,4924.3,0.2634]
[1756061840240,0.2229,4925.2,4924.7,0.2634]
[1756061840431,0.2229,4925.5,4924.3,0.3262]
[1756061840638,0.2229,4925.5,4924.6,0.2646]
[1756061840840,1.01523,4926.5,4924.2,0.2646]
[1756061840841,0.40626,4924.4,4924.2,0.2646]
[1756061841041,0.40621,4925.0,4924.3,0.2634]
[1756061841241,0.40621,4925.0,4924.1,0.40627]
[1756061841438,0.40622,4924.9,4924.2,0.5908]
[1756061841637,0.40615,4925.8,4925.0,0.4062]
[1756061841840,0.40608,4926.5,4925.3,0.3262]
[1756061842136,0.2229,4926.6,4923.5,20.31665]
[1756061842137,0.2229,4926.6,4924.9,0.528]
[1756061842337,0.2229,4926.6,4924.7,20.208]
[1756061842538,0.2229,4926.6,4925.0,0.3262]
[1756061842748,0.40607,4926.7,4925.1,1.19805914]
[1756061843046,0.40608,4926.5,4926.0,0.528]
[1756061843242,0.40612,4926.1,4925.9,0.5896]
[1756061843443,0.40612,4926.1,4925.5,0.40616]
[1756061843946,0.40612,4926.1,4926.0,0.8542]
[1756061844144,0.2229,4926.7,4926.0,0.8542]
[1756061844447,0.40611,4926.2,4926.1,0.8542]
[1756061845041,0.62897,4926.7,4926.4,0.8542]
[1756061845243,0.62897,4926.7,4926.5,0.2634]
[1756061845547,0.40611,4926.2,4925.5,0.8542]
[1756061845747,0.4802,4926.6,4925.8,0.5908]
[1756061845942,0.4802,4926.6,4925.8,0.3262]
[1756061846142,0.40606,4926.8,4926.2,0.8542]
[1756061846347,0.4802,4927.2,4926.3,0.2634]
[1756061846546,0.40605,4926.9,4926.2,0.40611]
[1756061846846,0.2229,4927.7,4927.0,0.40604]
[1756061847036,0.2573,4927.6,4927.2,0.3262]
[1756061847239,0.2573,4927.6,4927.4,0.3262]
[1756061847436,0.2503,4928.1,4927.5,0.8542]
[1756061847437,0.66326,4928.1,4927.5,0.8542]
[1756061847646,0.7367,4929.3,4927.5,0.0202]
[1756061847941,0.49258675,4929.2,4928.4,0.40592]
[1756061848142,0.49258675,4929.1,4928.6,0.4059]
[1756061848336,0.49258675,4929.0,4928.9,0.8722]
[1756061848538,0.223,4929.7,4929.2,0.40586]
[1756061848735,0.323,4930.2,4929.2,0.6169]
[1756061848940,0.323,4930.2,4928.7,0.4059]
[1756061849140,0.323,4930.2,4929.3,0.8722]
[1756061849336,0.40589,4928.9,4927.1,29.251]
[1756061849543,0.89584,4929.4,4928.5,0.40592]
[1756061849736,0.62884,4929.4,4928.8,0.5235]
[1756061849941,0.40586,4929.3,4928.9,0.8722]
[1756061850139,0.40591,4928.6,4926.7,1.01516]
[1756061850340,0.40593,4928.4,4927.4,0.40601]
[1756061850546,0.40594,4928.3,4927.6,0.8722]
[1756061850747,0.267,4928.5,4927.8,0.2682]
[1756061850944,0.223,4928.9,4927.9,0.2553]
[1756061851247,0.223,4928.9,4928.0,0.8722]
[1756061851248,0.40593,4928.3,4928.0,0.8722]
[1756061851437,0.40592,4928.5,4928.2,0.8722]
[1756061851636,0.2229,4929.4,4928.2,0.5235]
[1756061851852,0.2229,4929.4,4928.1,0.75465]
[1756061852147,0.4059,4928.7,4928.1,0.40595]
[1756061852449,0.40592,4928.5,4927.7,0.40598]
[1756061852748,0.2229,4929.4,4927.9,0.40596]
[1756061853044,0.2229,4929.4,4928.0,0.8722]
[1756061853242,0.2229,4929.4,4928.2,0.5235]
[1756061853449,0.2229,4929.4,4928.5,0.5235]
[1756061853745,0.40584,4929.5,4929.0,0.8722]
[1756061853945,0.40584,4929.5,4928.9,0.40588]
[1756061853946,0.40584,4929.5,4929.2,0.8722]
[1756061854141,0.40584,4929.5,4929.0,0.2682]
[1756061854340,0.40583,4929.6,4929.2,0.8722]
[1756061854543,0.40583,4929.6,4929.4,0.8722]
[1756061854737,0.2229,4930.0,4929.3,0.40585]
[1756061854738,0.4058,4930.0,4929.3,0.40585]
[1756061854946,0.62873,4929.5,4929.4,0.5235]
[1756061855248,0.4058,4930.0,4928.5,0.3487]
[1756061855542,0.1,4930.2,4929.6,0.40583]
[1756061855744,0.2229,4929.3,4928.7,0.8722]
[1756061855937,0.2229,4929.3,4927.7,20.231]
[1756061855938,0.3229,4930.2,4929.0,0.8722]
[1756061856250,0.40583,4929.6,4929.2,0.6169]
[1756061856447,0.3229,4930.2,4929.4,1.02274]
[1756061856647,0.40579,4930.1,4929.5,0.40583]
[1756061856852,0.1,4930.2,4929.6,0.40582]
[1756061857050,0.1,4930.2,4928.8,1.01473]
[1756061857353,0.1,4930.2,4929.8,0.4058]
[1756061857554,0.1,4930.2,4930.1,0.8722]
[1756061858549,0.40564,4931.9,4930.6,0.40574]
[1756061858848,0.4057,4931.2,4930.6,0.40574]
[1756061859047,0.4899,4932.0,4931.0,0.2682]
[1756061859249,0.4899,4932.0,4930.7,0.8722]
[1756061859451,0.4899,4932.0,4929.8,29.40137122]
[1756061859452,0.4899,4932.0,4929.9,0.8722]
[1756061859745,0.40565,4931.8,4931.1,1.2779]
[1756061859951,0.4899,4932.0,4931.1,0.8722]
[1756061860149,0.40568,4931.4,4931.1,0.8722]
[1756061860351,20.27364,4934.0,4930.9,20.187]
[1756061860551,2.0279,4932.7,4929.9,0.2682]
[1756061860752,2.0279,4932.7,4929.9,0.2553]
[1756061860753,0.66249,4930.0,4929.9,0.2553]
[1756061860945,0.66249,4930.0,4929.4,0.2682]
[1756061860946,0.5237,4931.0,4930.3,0.3487]
[1756061861142,0.5237,4931.0,4930.4,0.2553]
[1756061861143,0.40572,4930.9,4930.4,0.2553]
[1756061861349,0.40573,4930.8,4930.0,0.40579]
[1756061861657,0.40572,4931.0,4930.1,20.298]
[1756061861848,0.2567,4931.5,4930.1,20.298]
[1756061862044,0.40567,4931.5,4930.7,0.40573]
[1756061862249,0.2567,4932.2,4930.1,20.298]
[1756061862250,0.40566,4931.7,4930.9,0.40571]
[1756061862555,0.40567,4931.6,4931.0,1.27791]
[1756061862956,0.40568,4931.5,4931.0,0.8722]
[1756061863254,0.4057,4931.2,4930.7,20.289]
[1756061863755,0.4057,4931.2,4930.9,0.2682]
[1756061863960,0.4057,4931.2,4931.1,0.604]
[1756061864357,0.6624,4931.2,4931.1,0.604]
[1756061865058,0.40569,4931.4,4931.1,0.8722]
[1756061865259,0.40569,4931.4,4931.3,0.604]
[1756061865459,0.2567,4932.5,4931.3,0.2682]
[1756061865653,0.40561,4932.2,4931.5,0.604]
[1756061865849,0.2567,4932.5,4931.5,0.3487]
[1756061866053,0.2567,4932.5,4931.7,0.6169]
[1756061866456,0.40561,4932.3,4931.8,0.2553]